bitfinex/quotes_ETHUSD_20260107
["timestamp","ask_amount","ask_price","bid_price","bid_amount"]
[1767748908180,0.05341413,3247.9,3246.0,0.92006109]
[1767748908328,0.05341413,3247.9,3246.6,6.16029076]
[1767748908329,0.001,3247.9,3246.6,6.16029076]
[1767748908528,0.001,3247.9,3246.7,0.807]
[1767748908748,0.001,3247.9,3246.7,1.72706109]
[1767748908957,0.05241413,3248.3,3246.9,10.15964346]
[1767748909260,0.05241413,3248.1,3247.0,0.92006109]
[1767748909423,0.05241413,3248.4,3247.0,0.92006109]
[1767748909628,0.05241413,3248.6,3247.2,0.92006109]
[1767748909838,0.05241413,3248.4,3247.3,1.72706109]
[1767748911536,0.9382118,3248.3,3247.4,3.88638658]
[1767748911738,0.9382118,3248.3,3247.4,6.96577316]
[1767748912242,3.0781205,3248.8,3247.4,6.96577316]
[1767748912243,0.9382118,3248.8,3247.4,10.04515974]
[1767748912449,0.9382118,3249.0,3247.5,1.31245982]
[1767748912652,0.05542128,3249.1,3247.5,1.31245982]
[1767748912653,0.9382118,3248.8,3247.5,1.31245982]
[1767748912860,0.9382118,3248.8,3247.6,0.807]
[1767748913062,0.99363308,3248.7,3247.6,0.807]
[1767748913367,0.99363308,3248.7,3247.7,0.807]
[1767748913859,0.9382118,3248.5,3247.8,0.807]
[1767748914061,0.40164609,3248.4,3247.8,0.807]
[1767748914264,0.9392118,3248.7,3247.8,0.807]
[1767748914460,0.9382118,3248.6,3247.8,0.807]
[1767748915462,0.001,3248.7,3247.8,0.807]
[1767748915774,0.001,3248.7,3247.9,6.15782504]
[1767748916059,0.9382118,3249.1,3247.9,6.85430754]
[1767748916260,0.9382118,3249.1,3247.9,9.93322006]
[1767748916462,0.9382118,3249.6,3247.9,9.93322006]
[1767748916855,6.15441424,3249.7,3248.0,0.92006109]
[1767748917057,6.15441424,3249.7,3248.0,0.95084926]
[1767748917260,0.69614142,3249.6,3248.1,2.00846802]
[1767748918060,3.07739652,3249.5,3248.2,6.15725632]
[1767748918256,0.69614142,3249.6,3248.2,6.15725632]
[1767748918439,3.07732704,3249.6,3248.3,0.806]
[1767748918641,6.15465408,3249.6,3248.3,0.806]
[1767748918837,0.9392118,3250.1,3248.3,0.806]
[1767748919043,3.07692307,3250.0,3248.4,0.99157034]
[1767748919442,0.001,3250.1,3248.4,0.99157034]
[1767748919642,0.92066224,3250.0,3248.5,0.98575703]
[1767748919847,0.92066224,3250.0,3248.6,0.806]
[1767748920064,10.15171549,3249.9,3248.6,0.806]
[1767748920274,10.15171549,3249.9,3248.5,0.806]
[1767748920476,3.07701775,3249.9,3248.6,6.15642257]
[1767748920644,0.92066224,3249.8,3248.0,0.99157034]
[1767748920846,0.92066224,3249.6,3247.5,0.99157034]
[1767748921175,0.92066224,3249.3,3247.6,0.83679196]
[1767748921367,0.92066224,3249.3,3247.6,0.03079196]
[1767748921567,0.92066224,3249.3,3247.7,0.806]
[1767748921868,1.75073336,3249.6,3247.8,1.02631963]
[1767748922073,0.25136244,3249.5,3248.1,6.15740919]
[1767748922274,0.001,3250.1,3248.2,1.02631584]
[1767748922572,3.07671118,3251.3,3249.0,0.99552956]
[1767748922573,0.94473336,3251.1,3249.0,0.99552956]
[1767748922776,0.94473336,3250.9,3249.1,0.806]
[1767748923284,1.00015464,3250.9,3249.1,0.806]
[1767748923496,0.94473336,3250.6,3248.9,0.806]
[1767748923992,0.94473336,3250.6,3248.6,0.03078249]
[1767748924145,1.00015464,3250.3,3248.0,0.99552956]
[1767748924351,1.00015464,3250.1,3248.3,3.07850072]
[1767748924556,1.00015464,3250.1,3248.0,0.99552956]
[1767748924779,1.00015464,3249.9,3248.2,0.806]
[1767748925080,0.94473336,3249.6,3247.9,0.18323196]
[1767748925249,0.94473336,3249.4,3247.8,0.808]
[1767748925445,0.94473336,3249.2,3247.8,0.002]
[1767748926151,6.15555076,3249.1,3247.8,0.002]
[1767748926375,6.15555076,3249.1,3247.8,0.03279007]
[1767748926578,6.15460364,3249.6,3247.8,0.03279007]
[1767748926884,6.15460364,3249.6,3247.9,1.02631868]
[1767748926885,0.71547583,3249.5,3247.9,1.02631868]
[1767748927081,6.15447444,3249.7,3247.9,1.02631868]
[1767748927576,3.07701775,3249.9,3247.9,1.02631868]
[1767748928091,6.3344909,3250.0,3248.1,0.99552956]
[1767748928249,6.3344909,3250.0,3248.3,0.99552956]
[1767748928450,0.63344909,3249.9,3248.4,1.20954552]
[1767748929783,3.07771472,3250.3,3248.4,1.20954552]
[1767748930087,0.001,3250.3,3248.5,9.23503155]
[1767748930298,0.001,3250.3,3248.6,1.02631205]
[1767748930459,0.001,3250.3,3248.8,0.99552956]
[1767748930781,0.001,3250.3,3249.0,0.99552956]
[1767748930983,0.001,3250.3,3249.1,1.20953822]
[1767748931290,3.0757874,3251.2,3249.1,1.17876048]
[1767748931666,3.0757874,3251.2,3249.3,0.99552956]
[1767748931882,6.1524336,3251.3,3249.3,0.99552956]
[1767748932185,0.001,3251.3,3249.5,1.05095084]
[1767748932389,0.001,3251.3,3249.7,0.99552956]
[1767748932687,0.001,3251.3,3249.7,1.05095084]
[1767748933085,0.001,3251.3,3249.7,0.99552956]
[1767748933086,6.15238668,3251.3,3249.7,0.99552956]
[1767748933284,6.15238668,3251.3,3249.8,0.806]
[1767748933854,3.07669334,3251.3,3249.8,0.806]
[1767748934083,0.61523044,3251.2,3249.9,0.18015296]
[1767748934384,0.61523044,3251.2,3250.0,10.22629877]
[1767748934583,0.001,3251.3,3250.1,0.99552956]
[1767748934784,3.07503075,3252.0,3250.1,0.99552956]
[1767748934977,3.0747471,3252.3,3250.1,1.05095084]
[1767748935173,0.806,3252.8,3250.1,1.05095084]
[1767748935174,0.94473336,3252.9,3250.4,0.99552956]
[1767748935373,0.94473336,3252.9,3250.6,0.99552956]
[1767748935576,0.17507334,3252.8,3250.8,0.99552956]
[1767748935788,0.17507334,3252.8,3250.8,0.98949374]
[1767748936288,0.17507334,3252.8,3250.7,0.18569508]
[1767748936289,6.14873796,3252.7,3251.0,0.99552956]
[1767748936471,0.94473336,3252.6,3250.9,3.07607124]
[1767748936670,0.94473336,3252.6,3251.1,0.806]
[1767748936871,1.01678403,3252.5,3251.1,0.806]
[1767748937780,0.17507334,3252.8,3251.2,0.99552956]
[1767748937955,3.07415221,3253.0,3251.2,0.99552956]
[1767748938156,4.01873504,3253.1,3251.2,0.99552956]
[1767748938380,0.94473336,3253.4,3251.4,0.99552956]
[1767748938581,0.94473336,3253.4,3251.5,0.806]
[1767748938798,0.94473336,3253.2,3251.3,3.07569279]
[1767748938995,1.1198067,3253.1,3251.6,0.806]
[1767748939592,3.07351861,3253.6,3251.7,1.05095084]
[1767748939891,0.94473336,3253.5,3251.4,0.05542128]
[1767748940090,0.94473336,3253.5,3251.5,0.806]
[1767748940393,0.94473336,3253.5,3251.2,1.05095084]
[1767748940394,7.09214836,3253.4,3251.7,6.1506289]
[1767748940683,0.70921484,3253.3,3251.8,0.69566289]
[1767748941269,0.70921484,3253.3,3251.9,0.99552956]
[1767748941785,0.70921484,3253.3,3251.8,0.69566289]
[1767748941978,0.70921484,3253.3,3252.0,0.806]
[1767748942361,0.70921484,3253.3,3252.1,6.14987238]
[1767748942559,3.0744139,3253.8,3252.2,0.69558724]
[1767748942755,3.07433033,3253.8,3252.2,0.69558724]
[1767748942981,6.14766066,3253.8,3252.2,0.75100852]
[1767748943252,6.14766066,3253.8,3252.3,0.806]
[1767748943456,6.14766066,3253.8,3252.2,0.75100852]
[1767748943657,0.61476607,3253.7,3252.3,1.49608809]
[1767748943888,0.61476607,3253.7,3252.5,0.05542128]
[1767748944096,0.001,3253.8,3252.6,0.806]
[1767748944467,0.001,3253.8,3252.7,6.14873796]
[1767748944688,0.001,3253.8,3252.3,1.68561765]
[1767748944689,0.94573336,3253.8,3252.8,0.805]
[1767748945065,0.94573336,3253.8,3252.7,0.805]
[1767748945266,0.94573336,3253.8,3252.3,3.07473868]
[1767748945490,0.94573336,3253.8,3252.5,0.805]
[1767748946078,0.94573336,3253.8,3252.3,3.07472494]
[1767748946267,0.94573336,3253.8,3252.2,3.07481105]
[1767748946470,6.1468482,3253.7,3252.4,0.805]
[1767748946765,1.96132478,3253.6,3252.4,0.805]
[1767748946963,0.94473336,3253.5,3252.3,0.805]
[1767748947371,0.94473336,3253.5,3252.3,3.87972934]
[1767748947572,0.94473336,3253.5,3252.4,3.07465053]
[1767748947875,0.063343,3252.4,3251.2,1.05095084]
[1767748948076,0.063343,3252.4,3251.3,1.83128648]
[1767748948280,0.063343,3252.4,3251.4,0.18867078]
[1767748948476,0.063343,3252.4,3251.5,6.18176225]
[1767748948784,0.94473336,3253.4,3251.6,0.99552956]
[1767748949096,0.001,3253.8,3251.7,1.02628269]
[1767748949304,6.1468482,3253.7,3251.7,1.08170397]
[1767748949596,0.61478482,3253.6,3251.7,1.08170397]
[1767748950097,0.94473336,3253.5,3251.7,1.02628269]
[1767748950296,0.94473336,3253.5,3251.8,0.805]
[1767748950496,0.94473336,3253.5,3251.9,0.805]
[1767748950497,0.94473336,3253.3,3251.9,0.805]
[1767748950696,0.94473336,3253.3,3251.5,0.03075503]
[1767748950885,0.94473336,3253.1,3251.9,0.805]
[1767748951214,0.94473336,3253.1,3252.1,0.002]
[1767748951567,1.40445634,3253.2,3252.1,0.002]
[1767748952896,6.14798192,3253.1,3252.1,0.002]
[1767748954066,9.22197288,3253.1,3252.1,0.002]
[1767748954270,9.22197288,3253.1,3249.3,0.05]
[1767748954271,1.15592167,3253.0,3252.0,0.805]
[1767748954828,3.07417996,3252.9,3251.2,0.99679796]
[1767748954975,0.9327875,3252.8,3251.6,3.07539111]
[1767748955175,0.9327875,3252.8,3251.8,3.07520624]
[1767748955373,3.07380198,3253.3,3251.9,0.805]
[1767748955595,0.40065895,3253.2,3252.0,3.07503075]
[1767748955898,0.9327875,3253.1,3251.3,0.99679796]
[1767748956106,0.9327875,3253.1,3251.5,0.805]
[1767748956607,0.9327875,3253.1,3251.6,0.03074748]
[1767748956781,6.1481709,3253.0,3251.7,3.07528933]
[1767748956984,6.1481709,3253.0,3251.6,3.10611307]
[1767748956985,0.70809584,3252.9,3251.6,3.10611307]
[1767748958018,1.64088334,3252.9,3251.6,3.10613483]
[1767748958605,0.70809584,3252.9,3251.6,6.18154385]
[1767748958811,0.70809584,3252.9,3251.8,6.15043974]
[1767748959021,3.07465844,3253.5,3251.9,1.0275426]
[1767748959225,0.001,3253.5,3251.9,0.99679796]
[1767748959410,0.001,3253.5,3251.9,1.05221924]
[1767748959796,3.68832545,3253.6,3252.4,0.99679796]
[1767748960129,0.001,3254.7,3253.3,1.05221924]
[1767748960290,0.001,3254.7,3253.9,0.06334786]
[1767748960617,0.001,3254.7,3254.0,0.805]
[1767748960918,0.001,3254.7,3254.1,6.14609262]
[1767748962197,0.001,3255.5,3254.1,7.14289058]
[1767748962434,0.001,3255.5,3254.2,0.99679796]
[1767748962593,0.30825361,3255.5,3254.3,0.71428906]
[1767748962794,0.30825361,3255.5,3254.4,0.805]
[1767748962988,0.30825361,3255.5,3254.5,6.14533722]
[1767748963223,0.001,3255.5,3254.6,0.05542128]
[1767748963406,0.001,3255.5,3254.8,0.05542128]
[1767748963716,0.001,3255.5,3254.9,0.805]
[1767748964130,0.001,3255.5,3254.8,0.99679796]
[1767748964431,0.001,3255.5,3254.9,0.805]
[1767748965024,0.001,3255.5,3255.0,0.805]
[1767748965722,3.07087581,3256.4,3255.0,0.805]
[1767748965909,0.70744564,3256.3,3255.0,0.805]
[1767748966240,0.70744564,3256.3,3254.8,0.05542128]
[1767748966241,0.70744564,3256.3,3255.1,0.805]
[1767748966441,0.70744564,3256.3,3255.1,0.803]
[1767748966733,0.70744564,3256.3,3255.2,0.805]
[1767748966937,3.77847972,3256.3,3255.3,3.07191349]
[1767748967104,0.68493555,3256.2,3255.3,3.07191349]
[1767748967306,9.21278959,3256.4,3254.9,3.07225177]
[1767748967497,10.14557709,3256.4,3255.0,0.805]
[1767748968014,0.9327875,3256.3,3254.7,3.0724479]
[1767748968319,0.9327875,3256.3,3255.1,0.805]
[1767748968522,0.9327875,3256.3,3255.2,0.805]
[1767748968730,1.01455771,3256.2,3255.2,0.805]
[1767748969098,6.14231748,3256.1,3255.2,0.805]
[1767748969294,3.07115874,3256.1,3255.2,0.805]
[1767748969494,3.07115874,3256.1,3255.2,3.87699888]
[1767748969799,7.15668839,3256.2,3255.2,0.805]
[1767748970005,0.71566884,3256.1,3255.2,0.805]
[1767748971131,3.07125307,3256.0,3255.2,0.805]
[1767748972924,0.9327875,3255.9,3254.2,0.99679796]
[1767748973132,0.71566884,3256.1,3254.3,0.05542128]
[1767748973133,0.9327875,3255.7,3254.3,0.05542128]
[1767748973436,6.14288346,3255.8,3254.6,3.07253848]
[1767748973632,6.14288346,3255.8,3254.7,3.07247069]
[1767748973832,6.14288346,3255.8,3254.7,3.10319548]
[1767748974032,6.14288346,3255.8,3254.7,0.03072479]
[1767748974640,0.61428835,3255.7,3254.7,3.10119449]
[1767748975146,0.61428835,3255.7,3254.8,3.07237396]
[1767748975318,3.07163042,3255.6,3254.7,3.10120012]
[1767748975518,3.07163042,3255.6,3254.4,0.99679796]
[1767748975722,6.14326084,3255.6,3254.5,0.805]
[1767748975920,0.36859188,3255.5,3254.5,0.805]
[1767748976127,0.36859188,3255.5,3254.5,3.87761296]
[1767748976318,0.36859188,3255.5,3254.6,3.07251596]
[1767748977050,0.36859188,3255.5,3254.5,0.03072668]
[1767748977208,6.14382698,3255.3,3254.2,0.03072951]
[1767748977415,6.14382698,3255.3,3254.3,0.805]
[1767748977738,6.14382698,3255.3,3254.4,0.805]
[1767748979141,10.1807432,3255.3,3253.9,0.06334786]
[1767748979341,10.1807432,3255.3,3254.2,0.805]
[1767748979342,1.08319285,3255.2,3254.2,0.805]
[1767748979842,2.04819558,3255.2,3254.1,0.805]
[1767748980322,0.96500273,3255.1,3253.9,0.06334786]
[1767748980527,0.96500273,3255.0,3253.9,0.06334786]
[1767748980724,0.96500273,3255.0,3253.7,0.805]
[1767748981549,7.11740329,3254.9,3253.7,0.805]
[1767748981931,0.97282129,3254.8,3253.4,3.07366808]
[1767748982131,0.97282129,3254.7,3253.5,0.805]
[1767748983012,0.97282129,3254.7,3252.9,0.97584875]
[1767748983013,0.97282129,3254.7,3252.9,0.92042747]
[1767748983216,0.97282129,3254.7,3253.2,3.07384635]
[1767748983419,0.71174033,3254.8,3253.2,0.95116643]
[1767748983640,6.1451484,3254.6,3253.4,0.92042747]
[1767748983846,6.1451484,3254.6,3253.3,3.07379297]
[1767748984344,6.1451484,3254.6,3253.3,6.14759495]
[1767748984551,6.1451484,3254.6,3253.3,3.10453098]
[1767748985051,4.06538371,3254.7,3253.3,7.09876043]
[1767748985247,3.07252238,3254.7,3253.4,0.3104531]
[1767748985558,6.14401572,3255.2,3253.7,0.92042747]
[1767748985763,6.14401572,3255.2,3253.8,1.75616076]
[1767748985926,0.7116837,3255.1,3253.8,1.75616076]
[1767748986651,0.7116837,3255.1,3253.9,0.805]
[1767748987053,0.7116837,3255.1,3253.7,0.03073424]
[1767748987220,0.7116837,3255.1,3254.0,0.805]
[1767748987642,3.07219662,3255.0,3254.1,0.03073046]
[1767748987839,0.37838803,3254.9,3254.0,0.805]
[1767748988045,0.37838803,3254.9,3254.1,0.805]
[1767748988242,1.35120932,3254.9,3254.1,0.805]
[1767748988843,1.35120932,3254.9,3253.7,3.07342167]
[1767748989042,0.97282129,3254.8,3253.5,0.03073613]
[1767748989244,0.97282129,3254.8,3253.6,0.805]
[1767748989423,0.97282129,3254.8,3254.0,0.002]
[1767748989623,7.11778087,3254.7,3254.0,0.002]
[1767748989919,0.71177809,3254.6,3254.0,0.002]
[1767748990120,1.68459938,3254.6,3254.0,0.002]
[1767748990340,0.97282129,3254.5,3253.4,0.805]
[1767748990542,0.97282129,3254.5,3253.0,3.9944443]
[1767748990747,0.97282129,3254.5,3253.2,0.805]
[1767748990949,1.14128123,3254.4,3253.0,0.92042747]
[1767748991152,1.14128123,3254.4,3252.7,0.03074368]
[1767748991365,0.97282129,3254.2,3252.6,0.002]
[1767748991659,0.805,3254.3,3252.6,0.002]
[1767748991660,0.97282129,3254.0,3252.6,0.002]
[1767748992431,1.02824257,3254.0,3252.6,0.002]
[1767748992625,0.97282129,3253.8,3252.6,0.002]
[1767748992826,0.97282129,3253.6,3252.6,0.002]
[1767748993746,0.97282129,3253.4,3251.9,0.002]
[1767748994244,0.97282129,3253.4,3251.9,3.0771098]
[1767748994454,0.97282129,3253.4,3252.0,0.92042747]
[1767748994634,1.99218733,3253.3,3251.9,3.88212531]
[1767748994835,1.01936604,3253.3,3252.0,0.95117777]
[1767748995584,3.07361303,3253.5,3252.0,0.95117777]
[1767748995859,0.97282129,3253.5,3252.1,0.805]
[1767748996360,0.97282129,3253.4,3251.9,0.002]
[1767748997573,0.97282129,3253.2,3251.9,0.002]
[1767748997748,0.97282129,3253.0,3251.9,0.002]
[1767748998065,1.01947942,3252.9,3251.9,0.002]
[1767748998476,1.99230071,3252.9,3251.9,0.002]
[1767748999665,3.07427447,3252.8,3251.9,0.002]
[1767748999961,0.97282129,3252.7,3251.9,0.002]
[1767749001738,3.0744635,3252.6,3251.9,0.002]
[1767749001936,0.40472848,3252.5,3251.9,0.002]
[1767749002875,0.40472848,3252.5,3251.5,0.002]
[1767749003740,6.14930512,3252.4,3251.5,0.002]
[1767749005572,3.07465256,3252.4,3251.5,0.92242747]
[1767749006172,6.14930512,3252.4,3251.5,0.92242747]
[1767749006379,0.65540336,3252.3,3251.5,0.92242747]
[1767749006558,0.65540336,3252.3,3251.5,0.002]
[1767749008157,0.97282129,3252.6,3251.5,0.002]
[1767749010154,0.97282129,3252.4,3251.5,0.002]
[1767749010554,3.07455803,3252.5,3251.5,0.002]
[1767749010753,3.07455803,3252.5,3251.5,0.79295628]
[1767749011079,3.07455803,3252.5,3251.6,0.03075409]
[1767749011288,7.12193735,3252.5,3251.5,0.002]
[1767749011481,7.12193735,3252.5,3251.5,0.807]
[1767749012180,4.04737932,3252.5,3251.6,3.07536982]
[1767749012381,4.04737932,3252.5,3251.6,3.77115988]
[1767749012585,0.95700553,3252.4,3251.5,0.807]
[1767749013589,0.95700553,3252.4,3251.5,0.002]
[1767749014188,6.1494942,3252.3,3251.5,0.002]
[1767749014491,0.001,3252.2,3251.5,0.002]
[1767749016860,0.001,3252.2,3251.3,3.88064799]
[1767749017286,0.001,3252.2,3251.2,0.9300524]
[1767749017481,0.95800553,3252.2,3251.3,0.805]
[1767749017691,0.95800553,3252.2,3251.3,3.88068627]
[1767749017889,0.95800553,3252.2,3251.3,4.27183078]
[1767749018401,3.07588165,3252.2,3251.3,4.27183078]
[1767749018564,0.001,3252.2,3251.4,0.9300524]
[1767749019070,0.001,3252.2,3251.4,0.96080838]
[1767749020376,0.001,3252.2,3251.5,6.15100722]
[1767749020586,0.001,3252.2,3251.7,0.9300524]
[1767749022104,0.001,3252.2,3251.3,0.39114451]
[1767749022398,0.001,3252.2,3251.4,0.805]
[1767749022691,0.95800553,3252.2,3251.3,3.07564395]
[1767749022893,0.95800553,3252.2,3251.4,0.805]
[1767749023202,0.805,3252.9,3251.4,0.805]
[1767749023203,3.0737075,3253.4,3251.5,0.9300524]
[1767749023370,0.95700553,3253.2,3252.2,0.06325622]
[1767749023566,0.95700553,3253.2,3252.3,0.805]
[1767749024194,0.95700553,3253.8,3252.4,0.9300524]
[1767749024694,0.805,3254.3,3252.5,3.87950109]
[1767749024695,7.10385373,3253.7,3252.5,3.87950109]
[1767749024863,0.71038537,3253.6,3252.5,7.88411152]
[1767749025065,3.0734241,3253.7,3252.6,0.9300524]
[1767749025265,4.03016451,3254.0,3252.6,0.9300524]
[1767749025667,7.10332349,3254.0,3252.6,0.9300524]
[1767749025997,0.95700553,3254.0,3252.6,0.9300524]
[1767749026202,4.02986298,3254.3,3252.6,0.9300524]
[1767749026401,0.001,3253.4,3252.8,0.9300524]
[1767749026973,0.001,3253.4,3252.9,0.805]
[1767749027168,0.001,3253.4,3252.2,0.06325622]
[1767749027475,0.001,3253.4,3252.4,0.9300524]
[1767749027679,0.001,3253.4,3252.3,0.03074747]
[1767749027881,0.001,3253.4,3252.5,3.07452324]
[1767749028212,0.001,3253.4,3252.6,3.07444912]
[1767749028405,0.001,3253.4,3252.7,3.0743686]
[1767749028702,0.001,3253.4,3252.8,3.38169194]
[1767749029006,0.001,3253.4,3252.9,0.9300524]
[1767749029204,0.001,3253.4,3252.8,0.30743686]
[1767749029377,0.001,3253.4,3253.0,0.805]
[1767749031075,3.07304631,3254.1,3253.0,4.80908669]
[1767749031279,6.14609262,3254.1,3253.1,0.805]
[1767749032207,4.44981364,3254.2,3253.1,0.805]
[1767749032513,0.41983229,3254.2,3253.2,0.9300524]
[1767749032711,0.41983229,3254.2,3253.2,1.71837283]
[1767749033017,3.49278513,3254.2,3253.2,1.71837283]
[1767749033213,7.5227435,3254.2,3252.8,0.9300524]
[1767749033415,0.95700553,3254.1,3252.9,0.83574179]
[1767749033870,0.95700553,3254.1,3252.7,3.07428599]
[1767749034074,0.95700553,3254.1,3252.8,0.805]
[1767749034282,0.95700553,3254.1,3252.9,0.805]
[1767749034572,0.95700553,3253.9,3252.9,0.805]
[1767749034777,1.05956963,3254.0,3253.0,3.10481667]
[1767749035379,3.07323519,3253.9,3253.0,3.10481667]
[1767749035701,4.13275167,3254.0,3253.0,3.10481667]
[1767749036098,7.20593371,3254.0,3253.0,0.03074085]
[1767749036344,0.72059337,3253.9,3252.9,0.805]
[1767749036879,0.95700553,3253.8,3252.4,0.9300524]
[1767749037079,0.95700553,3253.8,3252.5,0.83574558]
[1767749037304,3.0734241,3253.7,3252.7,4.00442138]
[1767749037812,3.0734241,3253.7,3252.6,0.805]
[1767749037813,0.95700553,3253.6,3252.8,0.805]
[1767749037993,0.71038537,3253.5,3253.2,0.002]
[1767749038181,0.71038537,3253.5,3252.8,0.805]
[1767749038378,3.07335225,3253.8,3252.8,0.805]
[1767749038582,3.07335225,3253.8,3252.9,0.002]
[1767749039197,6.1467045,3253.8,3252.9,0.002]
[1767749039684,0.92615232,3253.7,3252.9,0.807]
[1767749039882,0.92615232,3253.7,3252.9,0.002]
[1767749040086,0.70728568,3253.6,3252.9,0.002]
[1767749040806,0.92615232,3253.5,3252.9,0.00099902]
[1767749041414,3.0737075,3253.4,3252.9,0.00099902]
[1767749042925,0.9485248,3253.3,3252.3,3.07471015]
[1767749043234,0.9485248,3253.2,3251.9,0.03075125]
[1767749043522,6.14798192,3253.1,3252.1,0.805]
[1767749044087,0.61479819,3253.0,3252.1,0.805]
[1767749044414,0.61479819,3253.0,3251.6,0.96766928]
[1767749044415,1.56332299,3253.0,3251.6,0.96766928]
[1767749044724,1.56332299,3253.0,3251.9,0.805]
[1767749044932,0.9485248,3252.9,3251.7,0.805]
[1767749045100,0.1563323,3252.8,3251.7,0.805]
[1767749045713,6.14873796,3252.7,3251.7,0.805]
[1767749046426,7.04726276,3252.7,3251.5,0.002]
[1767749046593,10.12163174,3252.7,3251.5,0.807]
[1767749046793,1.0277964,3252.6,3251.5,0.807]
[1767749047002,0.9485248,3252.5,3251.5,0.807]
[1767749048404,6.14930512,3252.4,3251.5,0.807]
[1767749049232,6.14930512,3252.4,3251.5,0.002]
[1767749049434,0.9485248,3252.3,3251.5,0.002]
[1767749049588,1.65830779,3252.3,3251.5,0.002]
[1767749050228,0.70978299,3252.3,3251.5,0.002]
[1767749050393,3.78460026,3252.3,3251.5,0.002]
[1767749052198,3.78460026,3252.3,3251.5,0.96966928]
[1767749052395,3.07441678,3252.7,3251.7,0.96766928]
[1767749052602,3.07441678,3252.7,3251.7,0.99842242]
[1767749054102,6.14883356,3252.7,3251.7,0.96766928]
[1767749055298,7.09688472,3252.9,3251.7,4.04290477]
[1767749055500,0.70968847,3252.8,3251.8,0.71490679]
[1767749055807,0.70968847,3252.8,3251.9,0.805]
[1767749057332,3.78404627,3252.8,3251.9,3.88010904]
[1767749057734,4.0227282,3252.9,3252.0,0.0307503]
[1767749057907,3.073435,3253.7,3252.0,0.99841958]
[1767749057908,0.9485248,3253.3,3252.0,0.99841958]
[1767749058107,4.02245481,3253.2,3252.0,0.96766928]
[1767749058431,4.02245481,3253.2,3252.0,0.99841958]
[1767749058635,3.07383699,3253.3,3252.0,0.99841958]
[1767749058816,0.9485248,3253.4,3252.2,0.96766928]
[1767749059021,0.9485248,3253.4,3252.3,0.805]
[1767749059330,0.9485248,3253.4,3252.1,1.10287792]
[1767749059521,0.9485248,3253.2,3252.2,0.805]
[1767749060213,0.9485248,3253.2,3252.0,0.805]
[1767749061132,0.9485248,3253.2,3251.5,0.002]
[1767749061338,0.9485248,3253.2,3251.6,3.07535551]
[1767749061635,0.9485248,3253.0,3251.5,0.002]
[1767749061929,0.9485248,3252.8,3251.4,0.80405519]
[1767749062132,0.9485248,3252.8,3251.3,3.88064335]
[1767749062604,0.9485248,3252.8,3251.3,0.805]
[1767749062810,0.9485248,3252.8,3249.9,3.0769714]
[1767749062811,0.9485248,3252.8,3250.7,0.96766928]
[1767749063002,0.9485248,3252.6,3250.8,0.83576165]
[1767749063219,0.9485248,3252.6,3250.9,0.805]
[1767749063416,0.9485248,3252.4,3251.0,3.0759738]
[1767749063744,0.9485248,3252.4,3250.9,3.91181264]
[1767749064120,0.9485248,3252.4,3251.3,0.002]
[1767749064318,0.9485248,3252.2,3251.3,0.002]
[1767749065519,6.14987238,3252.1,3251.3,0.002]
[1767749065740,7.09839718,3252.1,3251.3,0.002]
[1767749066828,0.9485248,3252.0,3251.3,0.002]
[1767749067713,5.04053673,3252.3,3251.3,0.96966928]
[1767749067908,4.02331684,3252.3,3251.3,0.96966928]
[1767749068112,7.09810888,3252.3,3251.3,0.96966928]
[1767749068635,4.02331684,3252.3,3251.3,0.96966928]
[1767749069143,0.9485248,3253.7,3251.5,0.96766928]
[1767749069319,0.9485248,3253.6,3251.7,0.96766928]
[1767749069524,0.9485248,3253.6,3251.9,0.96766928]
[1767749069727,3.0734241,3253.7,3252.1,0.96766928]
[1767749070029,3.07335333,3253.8,3252.3,0.96766928]
[1767749070242,0.40228781,3253.7,3252.5,0.96766928]
[1767749071038,0.40228781,3253.7,3252.6,3.0744635]
[1767749071252,0.9495248,3253.9,3252.6,3.0744635]
[1767749071757,7.07838683,3253.8,3252.6,3.0744635]
[1767749072056,4.00505719,3253.8,3252.6,6.148927]
[1767749072451,4.00505719,3253.8,3252.6,7.07060763]
[1767749072855,0.93172755,3253.8,3252.7,0.92168063]
[1767749073157,0.001,3253.9,3252.9,3.99586059]
[1767749073344,0.93272755,3253.9,3253.0,0.805]
[1767749073874,0.001,3253.9,3253.0,0.805]
[1767749075152,0.001,3253.9,3253.0,3.8790713]
[1767749075374,0.001,3253.9,3253.1,0.92168063]
[1767749075668,0.001,3253.9,3253.3,0.92168063]
[1767749076529,3.07339968,3254.8,3253.2,1.70916437]
[1767749076530,0.93172755,3254.7,3253.2,1.70916437]
[1767749076856,0.001,3253.6,3253.3,0.97710191]
[1767749077057,0.93172755,3254.7,3253.3,0.97710191]
[1767749077257,0.93172755,3254.7,3253.5,0.92168063]
[1767749077461,0.93172755,3254.7,3253.6,1.72668063]
[1767749078623,0.001,3254.8,3253.6,1.72668063]
[1767749079254,0.93172755,3254.7,3253.4,0.17645856]
[1767749079455,0.93172755,3254.7,3253.7,0.805]
[1767749080363,0.93172755,3254.7,3253.6,3.87851268]
[1767749080729,0.93172755,3254.7,3253.1,3.07393044]
[1767749080961,0.93172755,3254.7,3253.0,0.92168063]
[1767749080962,0.93172755,3254.7,3252.8,3.0742473]
[1767749081262,0.93172755,3254.5,3252.9,0.805]
[1767749081461,0.93172755,3254.3,3252.9,0.805]
[1767749081629,0.93172755,3254.3,3253.0,0.805]
[1767749083937,0.93172755,3254.1,3253.0,0.805]
[1767749084138,0.93172755,3254.1,3253.0,4.8007596]
[1767749085065,0.93172755,3254.1,3253.0,7.87484505]
[1767749085358,0.40046794,3254.0,3253.0,7.87484505]
[1767749086577,3.47361199,3254.0,3253.0,7.87484505]
[1767749087576,4.40535987,3254.0,3252.7,0.92168063]
[1767749087732,0.93172755,3253.9,3252.8,0.805]
[1767749087937,0.93272755,3254.8,3253.3,0.92168063]
[1767749088234,0.93272755,3254.8,3253.0,0.05542128]
[1767749088235,3.07254559,3254.7,3253.5,0.92168063]
[1767749088438,3.07254559,3254.7,3253.6,0.92168063]
[1767749088636,0.001,3254.4,3253.6,1.09742231]
[1767749089358,0.001,3254.4,3253.6,0.17574168]
[1767749089558,0.93272755,3254.4,3253.7,0.805]
[1767749089758,0.93272755,3254.4,3253.6,0.805]
[1767749090338,4.0055157,3254.4,3253.6,0.805]